Departmental Family ,Entity,Transaction Reference,Payment Date ,Account Name,Expense Area ,Description,Description,Base Amount
BIS,NMRO,90472698,14/12/2015,Hospitality,Technical Services ,Amey Community Limited,Hospitality,23.32
BIS,NMRO,90472698,14/12/2015,Hospitality,Technical Services ,Amey Community Limited,Hospitality,68.2
BIS,NMRO,90472698,14/12/2015,Hospitality,Technical Services ,Amey Community Limited,Catering for meeting ,117.88
BIS,NMRO,90472698,14/12/2015,Hospitality,Technical Services ,Amey Community Limited,Catering for meeting ,158.54
BIS,NMRO,90472698,14/12/2015,Hospitality,Technical Services ,Amey Community Limited,Catering for meeting ,158.54
BIS,NMRO,26127578,07/12/2015,Miscellaneous,Enforcement ,Autoglass,Pool car repair costs excess ,75
BIS,NMRO,31052775,14/12/2015,Stationery,Corporate Services ,Banner Business Services Ltd,Stationery  ,1.62
BIS,NMRO,6061715,07/12/2015,Training  ,Enforcement ,Bond Solon Training Ltd,Training ,535
BIS,NMRO,6061712,07/12/2015,Training  ,Enforcement ,Bond Solon Training Ltd,Training ,535
BIS,NMRO,6061713,07/12/2015,Training  ,Enforcement ,Bond Solon Training Ltd,Training ,535
BIS,NMRO,6061714,07/12/2015,Training  ,Enforcement ,Bond Solon Training Ltd,Training ,535
BIS,NMRO,6061380,14/12/2015,Training  ,Enforcement ,Bond Solon Training Ltd,Training ,535
BIS,NMRO,6061356,21/12/2015,Training  ,Enforcement ,Bond Solon Training Ltd,Training ,535
BIS,NMRO,30511008,21/12/2015,Hire of Agency Staff,Technical Services ,Brook Street (UK) Ltd,Temporary staff,116.59
BIS,NMRO,30499834,21/12/2015,Hire of Agency Staff,Technical Services ,Brook Street (UK) Ltd,Temporary staff,399.74
BIS,NMRO,30477795,07/12/2015,Hire of Agency Staff,Enforcement ,Brook Street (UK) Ltd,Temporary staff,482.18
BIS,NMRO,30499833,14/12/2015,Hire of Agency Staff,Enforcement ,Brook Street (UK) Ltd,Temporary staff,482.18
BIS,NMRO,30511007,21/12/2015,Hire of Agency Staff,Enforcement ,Brook Street (UK) Ltd,Temporary staff,482.18
BIS,NMRO,30488469,07/12/2015,Hire of Agency Staff,Enforcement ,Brook Street (UK) Ltd,Temporary staff,490.1
BIS,NMRO,30485178,14/12/2015,Hire of Agency Staff,Enforcement ,Brook Street (UK) Ltd,Temporary staff,516.22
BIS,NMRO,30425213,07/12/2015,Hire of Agency Staff,Enforcement ,Brook Street (UK) Ltd,Temporary staff,520.56
BIS,NMRO,30397003,21/12/2015,Hire of Agency Staff,Enforcement ,Brook Street (UK) Ltd,Temporary staff,550.92
BIS,NMRO,30518807,21/12/2015,Hire of Agency Staff,Enforcement ,Brook Street (UK) Ltd,Temporary staff,650.7
BIS,NMRO,30385271,21/12/2015,Hire of Agency Staff,Enforcement ,Brook Street (UK) Ltd,Temporary staff,655.03
BIS,NMRO,30441163,07/12/2015,Hire of Agency Staff,Enforcement ,Brook Street (UK) Ltd,Temporary staff,659.38
BIS,NMRO,30496504,14/12/2015,Hire of Agency Staff,Enforcement ,Brook Street (UK) Ltd,Temporary staff,685.56
BIS,NMRO,Q004 AW,15/12/2015,Telecommunications,Corporate Services ,BT plc,Telephone charges ,67.06
BIS,NMRO,Q003 PZ,07/12/2015,Telecommunications,Corporate Services ,BT plc,Phone line rental,90
BIS,NMRO,C13062,21/12/2015,Training ,Enforcement ,Capita Business Service Ltd,Training ,-150
BIS,NMRO,X84174,06/11/2015,Training ,Enforcement ,Capita Business Service Ltd,Training ,-138
BIS,NMRO,X84173,06/11/2015,Training ,Enforcement ,Capita Business Service Ltd,Training ,-134
BIS,NMRO,X87139,07/12/2015,Training ,Enforcement ,Capita Business Service Ltd,Training ,142
BIS,NMRO,X89929,21/12/2015,Training ,Enforcement ,Capita Business Service Ltd,Training ,146
BIS,NMRO,X89079,21/12/2015,Training ,Enforcement ,Capita Business Service Ltd,Training ,147
BIS,NMRO,X89930,21/12/2015,Training ,Utilities,Capita Business Service Ltd,Training ,204
BIS,NMRO,X89080,21/12/2015,Training ,Technical Services ,Capita Business Service Ltd,Training ,353
BIS,NMRO,10666963,14/12/2015,Gas,Corporate Services ,Corona Energy Retail 4 Ltd,Gas supply to NMRO,"2,240.58"
BIS,NMRO,"61511""5997",07/12/2015,Consultancy ,Corporate Services ,Department for Business Innovation and Skills ,Annual People survey charge ,530
BIS,NMRO,61511'5910,10/12/2015,Building Service Charges,Corporate Services ,Department for Business Innovation and Skills ,Facilities management costs ,"25,222.26"
BIS,NMRO,61511'5911,10/12/2015,Rent,Corporate Services ,Department for Business Innovation and Skills ,Rent charges ,"52,351.33"
BIS,NMRO,4848,14/12/2015,Training ,Utilities,Gemserv Ltd,Training ,295
BIS,NMRO,2357272239,07/12/2015,Car Hire & Leasing,Enforcement ,Hertz (UK) Ltd,Car hire,46.92
BIS,NMRO,2357269762,14/12/2015,Car Hire & Leasing,Technical Services ,Hertz (UK) Ltd,Car hire,46.92
BIS,NMRO,2357303625,14/12/2015,Car Hire & Leasing,Enforcement ,Hertz (UK) Ltd,Car hire,46.92
BIS,NMRO,2356026810,14/12/2015,Car Hire & Leasing,Enforcement ,Hertz (UK) Ltd,Car hire,46.92
BIS,NMRO,2357327643,21/12/2015,Car Hire & Leasing,Enforcement ,Hertz (UK) Ltd,Car hire,46.92
BIS,NMRO,2356026265,21/12/2015,Car Hire & Leasing,Enforcement ,Hertz (UK) Ltd,Car hire,46.92
BIS,NMRO,2357268941,07/12/2015,Car Hire & Leasing,Enforcement ,Hertz (UK) Ltd,Car hire,77.88
BIS,NMRO,2357250404,14/12/2015,Car Hire & Leasing,Utilities,Hertz (UK) Ltd,Car hire,77.88
BIS,NMRO,6002444,14/12/2015,IT Software Licences & Maintenance,Corporate Services ,Hewlett Packard Ltd,Database licences and maintenance,"13,857.41"
BIS,NMRO,32861,23/12/2015,HR Online/Internal audit,Corporate Services ,HM Treasury Group,Quarterly Internal Audit charges ,"5,226.00"
BIS,NMRO,2015094,21/12/2015,Laboratory Testing,Enforcement ,IBR Laboratories,Sample testing ,"12,524.00"
BIS,NMRO,1003857635,07/12/2015,Laboratory Testing,Enforcement ,Intertek Testing & Certification Ltd,Sample testing ,"13,820.00"
BIS,NMRO,1343,14/12/2015,Contractors costs,Technical Services ,Legal Metrology Consultancy Service ,Auditor services,538.2
BIS,NMRO,1341,14/12/2015,Contractors costs,Technical Services ,Legal Metrology Consultancy Service ,Auditor services,"1,145.19"
BIS,NMRO,1340,14/12/2015,Contractors costs,Technical Services ,Legal Metrology Consultancy Service ,Auditor services,"1,313.18"
BIS,NMRO,63,21/12/2015,Contractors costs,Technical Services ,Legal Metrology Ltd ,Auditor services,901.5
BIS,NMRO,57,14/12/2015,Contractors costs,Technical Services ,Legal Metrology Ltd ,Auditor services,"1,387.25"
BIS,NMRO,15005908,21/12/2015,Training ,Technical Services ,Lloyds Register Quality Assurance Ltd ,Training ,"3,965.28"
BIS,NMRO,232554,14/12/2015,Telecommunications,Corporate Services ,Maintel Europe Limited,Quarterly telephone system service charge ,796.98
BIS,NMRO,134731,21/12/2015,Telecommunications,Corporate Services ,Maintel Voice & Data Ltd,Telephone calls and line rental ,"1,738.16"
BIS,NMRO,2015/3828,10/12/2015,OIML Certificate Reg Fees,Technical Services ,Organisation Internationale de Metrologie Legale ,OIML certificate registration fees,506.31
BIS,NMRO,2257,07/12/2015,Training ,Enforcement ,QA Associates Limited,Training ,90
BIS,NMRO,2294,21/12/2015,Training,Enforcement ,QA Associates Limited,Training ,90
BIS,NMRO,NMO-004,14/12/2015,Training ,Enforcement ,RDS Driving Services Ltd,Training ,68
BIS,NMRO,NMO-003,14/12/2015,Training ,Enforcement ,RDS Driving Services Ltd,Training ,204
BIS,NMRO,281328891,21/12/2015,Scientific Equipment ,Technical Services ,RS Components Ltd,Scientific equipment ,150.53
BIS,NMRO,191,14/12/2015,IT Software Licences & Maintenance,Technical Services ,Russell IT Solutions ,Monthly hosting of new system,75
BIS,NMRO,GBE198915,14/12/2015,Laboratory Testing,Utilities,SGS United Kingdom Ltd ,Meter testing ,"13,593.87"
BIS,NMRO,1686379,07/12/2015,Courier Services,Technical Services ,Streetwise Couriers Surrey Ltd,Courier services ,229.52
BIS,NMRO,12033,14/12/2015,Additions - Intangible Assets ,Enforcement ,Sustain Limited,Database adaptations ,"1,950.00"
BIS,NMRO,DRAFT,07/12/2015,Licences,Estates ,The Royal Parks ,License fees for site buildings,2803.97
BIS,NMRO,3462493,01/12/2015,Laboratory Testing,Enforcement ,Thunen Institute ,Sample testing ,"9,211.24"
BIS,NMRO,995906,21/12/2015,IT Services,Corporate Services ,Triad Group Plc,IT Helpdesk support ,"3,360.00"
BIS,NMRO,994874,21/12/2015,IT Services,Corporate Services ,Triad Group Plc,IT Helpdesk support ,"4,200.00"
BIS,NMRO,SBS_12668,21/12/2015,HR Online/Internal audit,Corporate Services ,UK Shared Business Services Ltd ,HR and Payroll services ,"1,500.00"
BIS,NMRO,O200850,14/12/2015,Travel & Subsistence,Enforcement ,Vehicle Certification Agency ,Staff travel costs ,28.58
BIS,NMRO,78474723,21/12/2015,Telecommunications,Corporate Services ,Vodafone Limited,Mobile phone charges ,390.96
BIS,NMRO,78143152,07/12/2015,Telecommunications,Corporate Services ,Vodafone Limited,Mobile phone charges ,397.08
BIS,NMRO,IT82315,21/12/2015,Additions - Intangible Assets ,Corporate Services ,Vodafone Limited,Mobile phone device management software ,"2,400.00"
BIS,NMRO,MO15110005,14/12/2015,Stationery,Enforcement ,Williams Lea Ltd,Stationery,55.8
BIS,NMRO,MO15110006,14/12/2015,Marketing,Enforcement ,Williams Lea Ltd,NMRO Enforcement brochures ,"1,307.46"
BIS,NMRO,Z479364,21/12/2015,Computer Peripherals,Enforcement ,XMA Limited,Printer  ,75.41
BIS,NMRO,Z491985,21/12/2015,Computer Peripherals,Enforcement ,XMA Limited,Printer,75.41
BIS,NMRO,Z479302,21/12/2015,Computer Peripherals,Enforcement ,XMA Limited,Printer,75.41
BIS,NMRO,XM12735,14/12/2015,Hire of Office Equipment,Corporate Services ,XMA Limited,Quarterly lease charge for printers,805.42
BIS,NMRO,XPS00109,14/12/2015,Reprographic Services,Corporate Services ,XMA Limited,Printer usage charges,"1,593.88"
